bitfinex/quotes_BTCUSD_20250421
["timestamp","ask_amount","ask_price","bid_price","bid_amount"]
[1745223594224,0.09548,87263.0,87239.0,0.00229226]
[1745223595226,0.09548,87263.0,87240.0,0.0453]
[1745223595427,0.09548,87263.0,87241.0,0.00229226]
[1745223599384,0.03548,87263.0,87240.0,0.0453]
[1745223600515,0.03548,87263.0,87241.0,0.00229226]
[1745223601059,0.03548,87263.0,87240.0,0.0453]
[1745223602722,0.03548,87263.0,87238.0,0.1872646]
[1745223603761,0.03548,87263.0,87239.0,0.05109226]
[1745223605939,0.03548,87263.0,87240.0,0.0453]
[1745223606202,0.03548,87263.0,87241.0,0.00229226]
[1745223607189,0.03548,87263.0,87242.0,0.0488]
[1745223607975,0.09544,87263.0,87242.0,0.0488]
[1745223608580,0.09544,87263.0,87243.0,0.0453]
[1745223609005,0.09544,87263.0,87244.0,0.0488]
[1745223610965,0.4162,87273.0,87246.0,0.0488]
[1745223611169,6.224e-05,87263.0,87248.0,0.0488]
[1745223611344,6.224e-05,87263.0,87250.0,0.0488]
[1745223611567,6.224e-05,87263.0,87251.0,0.00229198]
[1745223613874,6.224e-05,87263.0,87251.0,0.01069733]
[1745223614085,6.224e-05,87263.0,87252.0,0.0488]
[1745223615790,6.224e-05,87263.0,87247.0,0.11944791]
[1745223615911,6.224e-05,87263.0,87225.0,0.01454085]
[1745223616112,6.224e-05,87263.0,87227.0,0.13398876]
[1745223616351,6.224e-05,87263.0,87227.0,0.14255448]
[1745223617189,6.224e-05,87263.0,87228.0,0.34229199]
[1745223617327,6.224e-05,87263.0,87230.0,0.34]
[1745223617555,6.224e-05,87263.0,87232.0,0.34]
[1745223617762,6.224e-05,87263.0,87234.0,0.34]
[1745223618008,6.224e-05,87263.0,87236.0,0.34]
[1745223618344,6.224e-05,87263.0,87238.0,0.34]
[1745223618520,6.224e-05,87263.0,87240.0,0.34]
[1745223618696,6.224e-05,87263.0,87242.0,0.34]
[1745223618925,0.4162,87273.0,87244.0,0.34]
[1745223619103,0.11944791,87272.0,87248.0,0.0453]
[1745223619305,0.11944791,87272.0,87249.0,0.05109199]
[1745223619506,0.11944791,87272.0,87250.0,0.0488]
[1745223619828,0.11944791,87272.0,87251.0,0.00229199]
[1745223619981,0.11214791,87272.0,87251.0,0.00229199]
[1745223620594,0.11214791,87272.0,87251.0,0.01085428]
[1745223620769,0.11214791,87272.0,87251.0,0.00229199]
[1745223620974,0.11214791,87272.0,87252.0,0.0932]
[1745223622000,0.11214791,87272.0,87253.0,0.0471]
[1745223623025,0.51164,87274.0,87253.0,0.0471]
[1745223623026,0.09544,87274.0,87254.0,0.00229199]
[1745223623227,0.09544,87276.0,87255.0,0.0471]
[1745223623770,0.09544,87276.0,87256.0,0.0461]
[1745223624491,0.09544,87279.0,87258.0,0.0461]
[1745223624606,0.09544,87280.0,87259.0,0.04939171]
[1745223625210,0.09544,87280.0,87261.0,0.0471]
[1745223625411,0.09544,87280.0,87262.0,0.00229171]
[1745223625840,0.11944791,87284.0,87262.0,0.00229171]
[1745223626118,0.09544,87283.0,87262.0,0.00229171]
[1745223626401,0.21488791,87283.0,87262.0,0.00229171]
[1745223627008,0.09544,87284.0,87262.0,0.12173962]
[1745223627187,0.09544,87284.0,87263.0,0.4332]
[1745223627494,0.4162,87285.0,87264.0,0.0471]
[1745223627878,0.046045,87289.0,87265.0,0.0461]
[1745223628079,0.000845,87289.0,87267.0,0.0461]
[1745223628425,0.00073631,87289.0,87269.0,0.0932]
[1745223628562,0.00073631,87289.0,87270.0,0.04939148]
[1745223629300,0.00073631,87289.0,87272.0,0.0471]
[1745223629482,0.00073631,87289.0,87273.0,0.00229138]
[1745223629683,0.000845,87290.0,87273.0,0.00229138]
[1745223630265,0.000845,87290.0,87274.0,0.0932]
[1745223630534,0.00095914,87290.0,87274.0,0.0932]
[1745223631121,0.00095914,87290.0,87275.0,0.00229138]
[1745223631878,0.0008456,87296.0,87275.0,0.00229138]
[1745223632081,0.0008456,87296.0,87275.0,0.00240552]
[1745223632403,0.0008456,87296.0,87276.0,0.0471]
[1745223632663,0.0008456,87296.0,87277.0,0.00229127]
[1745223634409,0.0008456,87296.0,87278.0,0.0461]
[1745223634621,0.0008456,87296.0,87280.0,0.0471]
[1745223634850,0.0008456,87296.0,87283.0,0.0471]
[1745223635031,0.0008456,87296.0,87284.0,0.00229111]
[1745223635384,0.08932061,87304.0,87285.0,0.0932]
[1745223636018,0.0962454,87307.0,87286.0,0.00229108]
[1745223636218,0.0962454,87307.0,87287.0,0.0471]
[1745223636219,0.09118365,87307.0,87287.0,0.0471]
[1745223636377,0.09118365,87307.0,87288.0,0.00229098]
[1745223637219,0.09118365,87307.0,87288.0,0.01634269]
[1745223637420,0.09118365,87307.0,87287.0,0.0471]
[1745223639259,0.08161365,87307.0,87289.0,0.0471]
[1745223639462,0.08161365,87307.0,87290.0,0.00229098]
[1745223639818,0.07392365,87307.0,87290.0,0.00229098]
[1745223639972,0.0558457,87307.0,87290.0,0.00229098]
[1745223640919,0.0558457,87307.0,87289.0,0.04939098]
[1745223641121,0.0558457,87307.0,87290.0,0.0471]
[1745223641474,0.09185741,87313.0,87290.0,0.0471]
[1745223642093,0.09185741,87313.0,87292.0,0.0471]
[1745223643050,0.09185741,87313.0,87292.0,0.04939098]
[1745223644206,0.09185741,87313.0,87292.0,0.0471]
[1745223645623,0.09189741,87313.0,87292.0,0.0471]
[1745223645846,0.0452,87311.0,87292.0,0.0471]
[1745223646075,0.09185741,87304.0,87288.0,0.01642477]
[1745223646303,0.01454085,87299.0,87288.0,0.01642477]
[1745223646556,0.0452,87297.0,87275.0,0.00011414]
[1745223646756,0.16754791,87296.0,87288.0,0.01675088]
[1745223646967,0.16754791,87296.0,87275.0,0.00011414]
[1745223647147,0.16754791,87296.0,87275.0,0.01614593]
[1745223647312,0.0954,87295.0,87276.0,0.00716972]
[1745223647515,0.11944791,87294.0,87275.0,0.00011414]
[1745223647735,0.11944791,87294.0,87275.0,0.01643816]
[1745223651214,0.11948791,87294.0,87275.0,0.01643816]
[1745223658195,0.01454085,87291.0,87275.0,0.01643816]
[1745223658406,0.11944791,87280.0,87275.0,0.01643816]
[1745223658961,0.09536,87279.0,87275.0,0.01643816]
[1745223659166,0.11944791,87278.0,87275.0,0.01643816]
[1745223660948,0.11948791,87278.0,87275.0,0.01643816]
[1745223661171,0.11948791,87278.0,87253.0,0.18184963]
[1745223661370,0.11948791,87278.0,87253.0,0.19851362]
[1745223662306,0.11948791,87278.0,87253.0,0.20080556]
[1745223662443,0.11948791,87278.0,87253.0,0.19851362]
[1745223663164,0.11948791,87278.0,87253.0,0.01666399]
[1745223664145,4e-05,87278.0,87253.0,0.1361119]
[1745223664303,4e-05,87278.0,87254.0,0.00229194]
[1745223664895,4e-05,87278.0,87257.0,0.0461]
[1745223665116,4e-05,87278.0,87259.0,0.0461]
[1745223665346,4e-05,87278.0,87261.0,0.0957]
[1745223665563,4e-05,87278.0,87262.0,0.0461]
[1745223665979,4e-05,87278.0,87263.0,0.00229161]
[1745223666192,4e-05,87278.0,87262.0,0.0461]
[1745223667604,4e-05,87278.0,87263.0,0.00229161]
[1745223667813,4e-05,87278.0,87265.0,0.0472]
[1745223667958,4e-05,87278.0,87265.0,0.04949161]
[1745223669144,4e-05,87278.0,87268.0,0.0472]
[1745223669360,4e-05,87294.0,87270.0,0.0954]
[1745223669563,0.0954,87305.0,87274.0,0.0472]
[1745223669767,0.11944791,87302.0,87274.0,0.0472]
[1745223671562,0.0482,87301.0,87274.0,0.0472]
[1745223671784,0.11944791,87300.0,87274.0,0.0472]
[1745223674223,0.11944791,87300.0,87274.0,0.05556471]
[1745223677443,0.11948791,87300.0,87274.0,0.05556471]
[1745223680129,0.11948791,87300.0,87253.0,0.01666399]
[1745223680130,0.18368876,87294.0,87268.0,0.0494]
[1745223680405,0.18366448,87294.0,87268.0,0.0494]
[1745223684077,0.01454085,87292.0,87265.0,0.0485]
[1745223684281,0.01454085,87290.0,87265.0,0.0485]
[1745223684424,0.01454085,87288.0,87265.0,0.0485]
[1745223684624,0.11944791,87287.0,87265.0,0.0485]
[1745223685229,0.21484791,87287.0,87265.0,0.0485]
[1745223685633,0.11944791,87287.0,87265.0,0.0485]
[1745223687252,0.11944791,87287.0,87266.0,0.047]
[1745223703346,0.11944791,87287.0,87266.0,0.04558316]
[1745223705180,0.11944791,87287.0,87263.0,0.00850823]
[1745223705377,0.00229169,87290.0,87266.0,0.11944791]
[1745223705503,0.00229169,87290.0,87267.0,0.00229144]
[1745223705703,0.00229169,87290.0,87267.0,0.12173935]
[1745223706732,0.0484,87291.0,87268.0,0.11944791]
[1745223706937,0.01737,87291.0,87269.0,0.00229133]
[1745223707138,0.0954,87300.0,87271.0,0.34]
[1745223707358,0.16924791,87299.0,87271.0,0.45944791]
[1745223707558,0.16924791,87299.0,87273.0,0.34]
[1745223709776,4e-05,87300.0,87275.0,0.34]
[1745223709944,0.0484,87299.0,87276.0,0.00229124]
[1745223710139,0.0484,87299.0,87275.0,0.34]
[1745223711841,0.09536,87304.0,87277.0,0.0462]
[1745223712052,0.3288755,87312.0,87280.0,0.0481]
[1745223712258,0.44832341,87312.0,87282.0,0.0462]
[1745223712461,0.44832341,87312.0,87284.0,0.0462]
[1745223712667,0.44832341,87312.0,87285.0,0.12173888]
[1745223713271,0.44832341,87312.0,87286.0,0.0462]
[1745223713492,0.44845919,87312.0,87287.0,0.00229097]
[1745223713705,0.00013578,87312.0,87289.0,0.3862]
[1745223713923,0.00013578,87312.0,87291.0,0.3862]
[1745223714093,0.00013578,87312.0,87292.0,0.00229084]
[1745223715533,0.00013578,87312.0,87291.0,0.3862]
[1745223715833,0.00013578,87312.0,87291.0,0.39489864]
[1745223717198,0.00013578,87312.0,87292.0,0.00229084]
[1745223717998,0.00013578,87312.0,87291.0,0.39489864]
[1745223719545,0.11,87299.0,87291.0,0.39489864]
[1745223719748,0.05288,87299.0,87291.0,0.39489864]
[1745223720065,0.00013578,87312.0,87291.0,0.39489864]
[1745223722716,0.00013578,87312.0,87293.0,0.0462]
[1745223723069,0.00013578,87312.0,87294.0,0.12173874]
[1745223723285,0.00013578,87312.0,87295.0,0.0481]
[1745223723499,0.00013578,87312.0,87296.0,0.16793848]
[1745223723712,0.32645552,87325.0,87297.0,0.0462]
[1745223723920,0.3269081,87325.0,87298.0,0.12173848]
[1745223724279,0.3269081,87325.0,87300.0,0.0462]
[1745223724481,0.3269081,87325.0,87302.0,0.34]
[1745223725007,0.00045258,87325.0,87302.0,0.34]
[1745223739311,0.00045258,87325.0,87303.0,0.045]
[1745223740441,0.00045258,87325.0,87304.0,0.0491]
[1745223740643,0.0008446,87329.0,87307.0,0.0494]
[1745223740874,0.11944791,87328.0,87307.0,0.0494]
[1745223745561,0.11935291,87328.0,87301.0,0.00045258]
[1745223746663,0.11935291,87328.0,87302.0,0.0989]
[1745223748485,0.11935291,87328.0,87303.0,0.00229058]
[1745223748942,0.11935291,87328.0,87302.0,0.0989]
[1745223751903,0.11939291,87328.0,87302.0,0.0989]
[1745223752908,0.11939291,87328.0,87304.0,0.0495]
[1745223753137,0.11939291,87328.0,87305.0,0.00229058]
[1745223753779,0.02403297,87328.0,87305.0,0.00229058]
[1745223754233,4e-05,87328.0,87305.0,0.12173849]
[1745223754401,0.0004223,87334.0,87307.0,0.0495]
[1745223754544,0.0004223,87334.0,87309.0,0.3895]
[1745223754751,0.0004223,87334.0,87310.0,0.00229037]
[1745223754955,0.0004223,87334.0,87311.0,0.0495]
[1745223755183,0.0004223,87334.0,87312.0,0.00229037]
[1745223758460,0.0004223,87334.0,87311.0,0.0495]
[1745223761405,0.09532,87338.0,87311.0,0.0495]
[1745223761580,0.11944791,87337.0,87313.0,0.048]
[1745223761785,0.11944791,87337.0,87314.0,0.0459]
[1745223762307,0.11944791,87337.0,87315.0,0.048]
[1745223763145,0.32645552,87347.0,87315.0,0.048]
[1745223763347,0.0132754,87418.0,87310.0,0.00229037]
[1745223763348,0.0004223,87360.0,87322.0,0.048]
[1745223763548,0.0310223,87363.0,87325.0,0.048]
[1745223763778,0.24037329,87371.0,87326.0,0.35172575]
[1745223763967,0.02551867,87370.0,87332.0,0.048]
[1745223764139,0.02551867,87370.0,87334.0,0.0476901]
[1745223764355,0.02551867,87370.0,87335.0,0.12173744]
[1745223765230,0.00013577,87370.0,87337.0,0.11944791]
[1745223765431,0.00013577,87370.0,87338.0,0.00228928]
[1745223765643,0.00013577,87370.0,87339.0,0.11944791]
[1745223765918,0.00013577,87370.0,87340.0,0.06051288]
[1745223766232,0.00013577,87370.0,87342.0,0.34]
[1745223766437,0.00013577,87370.0,87344.0,0.34]
[1745223766576,0.00013577,87370.0,87346.0,0.34]
[1745223766759,0.00013577,87370.0,87348.0,0.3859]
[1745223766959,0.00013577,87370.0,87350.0,0.34]
[1745223767284,0.00013577,87370.0,87353.0,0.048]
[1745223767466,0.00013577,87370.0,87355.0,0.34]
[1745223767666,0.00013577,87370.0,87357.0,0.34]
[1745223767920,0.00013577,87370.0,87357.0,0.45944791]
[1745223768685,0.0004224,87372.0,87357.0,0.45944791]
[1745223768899,0.0004224,87372.0,87357.0,0.45958368]
[1745223771848,0.24037329,87391.0,87358.0,0.0464]
[1745223772023,0.24037329,87391.0,87359.0,0.11944791]
[1745223772483,0.24037329,87391.0,87360.0,0.0463]
[1745223772728,0.24037329,87391.0,87361.0,0.11944791]
[1745223773189,0.24037329,87391.0,87362.0,0.04868901]
[1745223773412,0.0466,87397.0,87363.0,0.11944791]
[1745223773638,0.11944791,87396.0,87364.0,0.34228895]
[1745223773865,0.11944791,87396.0,87366.0,0.34]
[1745223774087,0.11944791,87396.0,87367.0,0.00228895]
[1745223774324,0.005,87400.0,87368.0,0.3864]
[1745223774563,0.23143812,87399.0,87370.0,0.34]
[1745223774794,0.11199021,87399.0,87372.0,0.34]
[1745223775032,0.11199021,87399.0,87374.0,0.34]
[1745223775279,0.09053525,87399.0,87376.0,0.34]
[1745223775516,0.09053525,87399.0,87378.0,0.34]
[1745223775705,0.09053525,87399.0,87380.0,0.34]
[1745223775706,0.03263446,87399.0,87380.0,0.34]
[1745223775950,0.03263446,87399.0,87382.0,0.34]
[1745223776171,0.01693546,87399.0,87384.0,0.34]
[1745223776376,0.01693546,87399.0,87386.0,0.34]
[1745223776619,7e-05,87404.0,87388.0,0.34]
[1745223776818,7e-05,87404.0,87390.0,0.34]
[1745223776968,7e-05,87404.0,87392.0,0.34]
[1745223777292,7e-05,87404.0,87383.0,0.14164]
[1745223777293,7e-05,87404.0,87394.0,0.0927]
[1745223777495,0.00020567,87404.0,87395.0,0.00228823]
[1745223777735,0.00020567,87404.0,87395.0,0.02878411]
[1745223778149,0.00020567,87404.0,87394.0,0.22087709]
[1745223778505,0.00020567,87404.0,87394.0,0.00872918]
[1745223778705,0.00020567,87404.0,87384.0,0.0464]
[1745223778923,0.00020567,87404.0,87385.0,0.11944791]
[1745223780448,0.00070567,87404.0,87385.0,0.11944791]
[1745223780641,0.00070567,87404.0,87386.0,0.34]
[1745223780888,0.00070567,87404.0,87386.0,0.45944791]
[1745223781068,0.00070567,87404.0,87386.0,0.46788315]
[1745223782155,0.09185741,87393.0,87364.0,0.0464]
[1745223782440,0.01454085,87391.0,87359.0,0.0463]
[1745223782612,0.11944791,87390.0,87359.0,0.0463]
[1745223782779,0.11944791,87390.0,87354.0,0.11944791]
[1745223782977,0.01454085,87389.0,87354.0,0.11944791]
[1745223783186,0.01454085,87387.0,87354.0,0.11944791]
[1745223783393,0.11944791,87386.0,87354.0,0.11944791]
[1745223783612,0.0952,87385.0,87354.0,0.11944791]
[1745223783837,0.11944791,87384.0,87354.0,0.11944791]
[1745223784120,0.11944791,87384.0,87355.0,0.34]
[1745223784351,0.11944791,87384.0,87355.0,0.11944791]
[1745223784585,0.11944791,87384.0,87355.0,0.1278318]
[1745223785686,0.11944791,87384.0,87355.0,0.00838389]
[1745223785687,0.10704085,87383.0,87355.0,0.00838389]
[1745223785856,0.11944791,87382.0,87355.0,0.00838389]
[1745223786061,0.11944791,87382.0,87342.0,0.05717024]
[1745223786267,0.11944791,87382.0,87343.0,0.11944791]
[1745223786660,0.11944791,87382.0,87343.0,0.13815812]
[1745223787921,0.11944791,87382.0,87344.0,0.34]
[1745223788091,0.11944791,87382.0,87346.0,0.34]
[1745223788297,0.11944791,87382.0,87348.0,0.34]
[1745223788449,0.11944791,87382.0,87350.0,0.34]
[1745223790271,0.11944791,87382.0,87352.0,0.34]
[1745223790451,0.24037329,87390.0,87343.0,0.01892271]
[1745223790452,0.24037329,87390.0,87355.0,0.0489]
[1745223790651,0.24037329,87390.0,87357.0,0.34]
[1745223790652,0.33557329,87390.0,87357.0,0.34]
[1745223790878,0.33557329,87390.0,87359.0,0.34]
[1745223791172,0.0952,87390.0,87361.0,0.34]
[1745223791378,0.0952,87390.0,87362.0,0.12173683]
[1745223792369,0.0952,87399.0,87363.0,0.0452]
[1745223792557,0.11944791,87398.0,87364.0,0.12173676]
[1745223795414,0.11944791,87398.0,87365.0,0.34]
[1745223795615,0.11944791,87398.0,87367.0,0.34]
[1745223795830,0.11944791,87398.0,87369.0,0.34]
[1745223795988,0.11744791,87398.0,87371.0,0.34]
[1745223796189,0.11744791,87398.0,87371.0,0.11944791]
[1745223796637,0.11744791,87398.0,87372.0,0.0489]
[1745223796843,0.11744791,87398.0,87372.0,0.3889]
[1745223801045,0.11744791,87398.0,87371.0,0.11944791]
[1745223802742,0.11744791,87398.0,87372.0,0.00228883]
[1745223802943,0.11744791,87398.0,87372.0,0.34228883]
[1745223803245,0.11744791,87398.0,87372.0,0.34]
[1745223804000,0.11744791,87398.0,87373.0,0.0453]
[1745223804364,0.33557329,87402.0,87373.0,0.0453]
[1745223804565,0.11944791,87401.0,87373.0,0.0453]
[1745223805402,0.24037329,87402.0,87375.0,0.34]
[1745223805609,0.4550212,87402.0,87375.0,0.34]
[1745223805747,0.3598212,87402.0,87375.0,0.34]
[1745223807187,0.11944791,87402.0,87375.0,0.34]
[1745223808015,0.11894791,87402.0,87375.0,0.34]
[1745223810649,0.11894791,87402.0,87363.0,0.0452]
[1745223810919,0.01445094,87399.0,87363.0,0.0452]
[1745223811165,0.09185741,87394.0,87361.0,0.23859442]
[1745223811386,0.21924791,87393.0,87361.0,0.23859442]
[1745223813030,0.25491414,87392.0,87361.0,0.00860616]
[1745223813199,0.11944791,87391.0,87361.0,0.00860616]
[1745223813402,0.11944791,87391.0,87354.0,0.0453]
[1745223813610,0.11944791,87391.0,87356.0,0.34]
[1745223813791,0.11944791,87391.0,87358.0,0.34]
[1745223813967,0.11944791,87391.0,87358.0,0.45944791]
[1745223814173,0.11944791,87391.0,87358.0,0.46821547]
[1745223814744,0.09524,87390.0,87358.0,0.46821547]
[1745223814909,0.11944791,87389.0,87358.0,0.46821547]
[1745223815936,0.21468791,87389.0,87358.0,0.46821547]
[1745223816296,0.21468791,87389.0,87359.0,0.00228914]
[1745223816524,0.24037329,87392.0,87360.0,0.45944791]
[1745223816694,0.21558912,87392.0,87362.0,0.0492]
[1745223816907,0.21558912,87392.0,87363.0,0.12173671]
[1745223817310,0.21558912,87392.0,87363.0,0.11944791]
[1745223817582,0.21558912,87392.0,87363.0,0.12173664]
[1745223818403,0.21558912,87392.0,87363.0,0.11944791]
[1745223818765,0.047,87399.0,87363.0,0.11944791]
[1745223819846,0.047,87399.0,87364.0,0.00228873]
[1745223819993,0.047,87399.0,87365.0,0.21468791]
[1745223820334,0.047,87399.0,87366.0,0.00228872]
[1745223820532,0.047,87399.0,87368.0,0.34]
[1745223820739,0.047,87399.0,87370.0,0.34]
[1745223820890,0.047,87399.0,87372.0,0.34]
[1745223821242,0.047,87399.0,87374.0,0.34]
[1745223821531,0.047,87399.0,87376.0,0.0464]
[1745223822301,0.0479,87403.0,87376.0,0.0464]
[1745223822497,0.11944791,87402.0,87376.0,0.0464]
[1745223823498,0.13956308,87404.0,87377.0,0.34228872]
[1745223823716,0.11944791,87403.0,87377.0,0.34]
[1745223823921,0.13956308,87404.0,87378.0,0.12173657]
[1745223824546,0.13956308,87404.0,87379.0,0.0492]
[1745223824717,0.09256308,87404.0,87380.0,0.00228864]
[1745223824937,0.09256308,87404.0,87381.0,0.11944791]
[1745223824938,0.00070567,87404.0,87381.0,0.11944791]
[1745223827631,0.00070567,87404.0,87382.0,0.34]
[1745223827914,0.00070567,87404.0,87384.0,0.34]
[1745223831757,0.00070567,87404.0,87382.0,0.00873773]
[1745223832045,0.00070567,87404.0,87371.0,0.048]
[1745223832244,0.00070567,87404.0,87372.0,0.11944791]
[1745223832418,0.00074567,87404.0,87372.0,0.11944791]
[1745223832968,0.00078567,87404.0,87372.0,0.11944791]
[1745223834491,0.11944791,87403.0,87373.0,0.11944791]
[1745223834693,0.11944791,87403.0,87374.0,0.34]
[1745223835041,0.11944791,87403.0,87373.0,0.12802386]
[1745223836866,0.11944791,87403.0,87374.0,0.34]
[1745223837290,0.03764236,87402.0,87373.0,0.12802386]
[1745223837498,0.11944791,87401.0,87373.0,0.12802386]
[1745223838213,0.10135927,87401.0,87373.0,0.00857595]
[1745223838402,0.0499,87400.0,87373.0,0.00857595]
[1745223838540,0.11944791,87399.0,87370.0,0.03422345]
[1745223839149,0.11944791,87399.0,87370.0,0.37422345]
[1745223839820,0.11944791,87399.0,87370.0,0.38287234]
[1745223840336,0.0478,87398.0,87370.0,0.38287234]
[1745223840503,0.11944791,87397.0,87370.0,0.38287234]
[1745223842144,0.11944791,87397.0,87370.0,0.34864889]
[1745223842370,0.0478,87396.0,87370.0,0.34864889]
[1745223842588,0.11944791,87395.0,87370.0,0.34864889]
[1745223842806,0.0478,87394.0,87370.0,0.34864889]
[1745223843022,0.11944791,87395.0,87370.0,0.34864889]
[1745223843023,0.11944791,87393.0,87370.0,0.34864889]
[1745223843230,0.0478,87392.0,87370.0,0.34864889]
[1745223843401,0.16724791,87392.0,87370.0,0.34864889]
[1745223851694,0.16724791,87392.0,87370.0,0.00864889]
[1745223851946,0.16724791,87392.0,87362.0,0.0477]
[1745223852179,0.16724791,87392.0,87363.0,0.11944791]
[1745223852981,0.16724791,87392.0,87364.0,0.34]
[1745223853130,0.16724791,87392.0,87366.0,0.34]
[1745223854006,0.11944791,87392.0,87366.0,0.34]
[1745223854331,0.0952,87399.0,87363.0,0.00859094]
[1745223854332,0.0488,87389.0,87363.0,0.00859094]
[1745223854539,0.0488,87387.0,87363.0,0.00859094]
[1745223854766,0.0488,87385.0,87360.0,0.34]
[1745223854971,0.0488,87383.0,87360.0,0.34]
[1745223855184,0.11944791,87382.0,87360.0,0.34]
[1745223855390,0.0488,87381.0,87350.0,0.0952]
[1745223855618,0.11944791,87380.0,87351.0,0.46173713]
[1745223855840,0.11944791,87380.0,87351.0,0.45944791]
[1745223856057,0.11944791,87380.0,87352.0,0.00228922]
[1745223856282,0.0959,87379.0,87351.0,0.45944791]
[1745223856495,0.21534791,87379.0,87352.0,0.00870394]
[1745223856713,0.21534791,87379.0,87351.0,0.45944791]
[1745223858800,0.21534791,87379.0,87352.0,0.00228922]
[1745223859738,0.08497001,87379.0,87353.0,0.11944791]
[1745223859936,0.07239001,87379.0,87354.0,0.34228905]
[1745223860140,0.0488,87379.0,87356.0,0.34]
[1745223860352,0.21558912,87388.0,87358.0,0.34]
[1745223860703,0.21558912,87388.0,87360.0,0.34]
[1745223860902,0.21558912,87388.0,87362.0,0.34]
[1745223861101,0.21558912,87388.0,87364.0,0.34]
[1745223861386,0.21558912,87388.0,87364.0,0.45944791]
[1745223861784,0.20236912,87388.0,87365.0,0.00228888]
[1745223862119,0.19660912,87388.0,87366.0,0.34]
[1745223862326,0.19660912,87388.0,87367.0,0.00228885]
[1745223862526,0.13952853,87388.0,87367.0,0.00228885]
[1745223863128,0.08244794,87388.0,87367.0,0.00228885]
[1745223863327,0.03601794,87388.0,87367.0,0.00228885]
[1745223863523,0.01613394,87388.0,87368.0,0.11944791]
[1745223863750,0.01613394,87388.0,87369.0,0.05138871]
[1745223863953,0.01613394,87388.0,87370.0,0.11944791]
[1745223864134,0.01036394,87388.0,87372.0,0.0482]
[1745223864365,0.028986,87395.0,87373.0,0.12173654]
[1745223864567,0.028986,87395.0,87373.0,0.11944791]
[1745223864765,0.0477,87396.0,87373.0,0.11944791]
[1745223864972,0.00393,87396.0,87373.0,0.11944791]
[1745223865765,0.09185741,87398.0,87373.0,0.11944791]
[1745223867041,0.09185741,87398.0,87374.0,0.34228857]
[1745223867285,0.06446418,87398.0,87376.0,0.34]
[1745223867461,0.00739366,87398.0,87377.0,0.00228856]
[1745223867825,0.049,87400.0,87377.0,0.00228856]
[1745223869657,0.049,87400.0,87376.0,0.45944791]
[1745223874966,0.049,87400.0,87376.0,0.46780577]
[1745223882382,0.049,87400.0,87376.0,0.12780577]
[1745223891305,0.11944791,87399.0,87376.0,0.00835786]
[1745223891504,0.0453,87397.0,87376.0,0.00835786]
[1745223891714,0.0453,87397.0,87370.0,0.34]
[1745223891918,0.0498,87398.0,87376.0,0.00852136]
[1745223891919,0.11944791,87396.0,87376.0,0.00852136]
[1745223892045,0.0453,87395.0,87370.0,0.34]
[1745223892247,0.11944791,87394.0,87370.0,0.34]
[1745223892452,0.11944791,87394.0,87367.0,0.0952]
[1745223894677,0.11944791,87394.0,87368.0,0.00228883]
[1745223894881,0.11944791,87394.0,87368.0,0.01069634]
[1745223895088,0.11944791,87394.0,87368.0,0.00228883]
[1745223895287,0.11944791,87394.0,87363.0,0.00228883]
[1745223895506,0.11944791,87394.0,87364.0,0.11944791]
[1745223896903,0.11944791,87394.0,87365.0,0.34228883]
[1745223897108,0.11944791,87394.0,87362.0,0.048]
[1745223897109,0.11944791,87394.0,87367.0,0.34]
[1745223897418,0.0453,87395.0,87369.0,0.34]
[1745223897622,0.0453,87395.0,87370.0,0.00228883]
[1745223897842,0.0498,87398.0,87371.0,0.3892]
[1745223898050,0.16924791,87398.0,87372.0,0.00228877]
[1745223899454,0.16924791,87398.0,87371.0,0.3892]
[1745223900906,0.0453,87397.0,87371.0,0.3892]
[1745223909992,0.0453,87397.0,87371.0,0.4392]
[1745223915454,0.01281646,87397.0,87372.0,0.12173668]
[1745223915649,0.00693354,87397.0,87372.0,0.11944791]
[1745223916282,0.0498,87398.0,87372.0,0.11944791]
[1745223916678,0.04254,87398.0,87372.0,0.11944791]
[1745223916880,0.01519,87398.0,87372.0,0.11944791]
[1745223917122,0.01519,87398.0,87373.0,0.0481]
[1745223917243,0.00078567,87404.0,87373.0,0.16754791]
[1745223917444,0.11944791,87403.0,87373.0,0.16754791]
[1745223919315,0.0145,87402.0,87374.0,0.34]
[1745223919513,0.11944791,87401.0,87374.0,0.34]
[1745223921362,0.11944791,87401.0,87375.0,0.0466]
[1745223921775,0.11944791,87401.0,87376.0,0.0022887]
[1745223926154,0.0145,87402.0,87377.0,0.11944791]
[1745223926359,0.39855765,87406.0,87379.0,0.0481]
[1745223926672,0.35540602,87406.0,87382.0,0.0481]
[1745223926997,0.04630067,87413.0,87383.0,0.11944791]
[1745223927137,0.04675274,87413.0,87384.0,0.0481]
[1745223927339,0.04675274,87413.0,87385.0,0.11944791]
[1745223930232,0.04675274,87413.0,87386.0,0.34]
[1745223930441,0.04675274,87413.0,87388.0,0.34]
[1745223930644,0.04675274,87413.0,87387.0,0.11944791]
[1745223930645,0.04675274,87413.0,87390.0,0.34]
[1745223930844,0.04675274,87413.0,87392.0,0.34]
[1745223931188,0.04675274,87413.0,87394.0,0.437]
[1745223933094,0.04675274,87413.0,87394.0,0.44543574]
[1745223933287,0.38259733,87433.0,87395.0,0.21644791]
[1745223933443,0.11944791,87431.0,87397.0,0.0481]
[1745223933648,0.11944791,87431.0,87398.0,0.16754791]
[1745223934662,0.11944791,87431.0,87399.0,0.34]
[1745223934883,0.11944791,87431.0,87401.0,0.34]
[1745223935132,0.11937571,87431.0,87403.0,0.34]
[1745223935279,0.11935745,87431.0,87405.0,0.34]
[1745223936222,0.11935745,87431.0,87406.0,0.0946]
[1745223939516,0.0955821,87435.0,87406.0,0.0946]
[1745223939712,0.11987001,87432.0,87406.0,0.0946]
[1745223940511,0.11987001,87432.0,87407.0,0.00228791]
[1745223942117,0.11987001,87432.0,87406.0,0.0946]
[1745223947423,0.11987001,87432.0,87407.0,0.0483]
[1745223950187,0.11987001,87432.0,87408.0,0.0463]
[1745223950340,0.11987001,87432.0,87410.0,0.0461]
[1745223950536,0.11987001,87432.0,87411.0,0.0488]
[1745223950736,0.11987001,87432.0,87412.0,0.0488]
[1745223951851,0.14848876,87431.0,87410.0,0.0461]
[1745223952051,0.14948876,87431.0,87410.0,0.0461]
[1745223953719,0.01454085,87429.0,87410.0,0.0461]
[1745223953926,0.01454085,87427.0,87410.0,0.0461]
[1745223954154,0.01454085,87425.0,87410.0,0.0461]